fUST/lending_fUST_20260129
["ID","MTS","AMOUNT","RATE_DAILY","PERIOD"]
[403960858,1769694642802,-500.0,0.00013698,2]
[403960860,1769694642811,-500.0,0.00013698,2]
[403960863,1769694642821,-500.0,0.00013698,2]
[403960864,1769694642829,-500.0,0.00013698,2]
[403960866,1769694642838,-500.0,0.00013698,2]
[403960868,1769694642848,-500.0,0.00013698,2]
[403960870,1769694642857,-500.0,0.00013698,2]
[403960872,1769694642868,-500.0,0.00013698,2]
[403960875,1769694642877,-500.0,0.00013698,2]
[403960876,1769694642887,-500.0,0.00013698,2]
[403960878,1769694642896,-502.22690096,0.00013698,2]
[403960880,1769694642906,-500.0,0.00013698,2]
[403960882,1769694642915,-500.0,0.00013698,2]
[403960884,1769694642924,-500.0,0.00013698,2]
[403960886,1769694642932,-500.0,0.00013698,2]
[403960888,1769694642941,-500.0,0.00013698,2]
[403960890,1769694642950,-500.0,0.00013698,2]
[403960892,1769694642959,-500.0,0.00013698,2]
[403960894,1769694642970,-500.0,0.00013698,2]
[403960896,1769694642979,-500.0,0.00013698,2]
[403960898,1769694642988,-500.0,0.00013698,2]
[403960900,1769694642998,-500.0,0.00013698,2]
[403960902,1769694643006,-500.0,0.00013698,2]
[403960904,1769694643015,-500.0,0.00013698,2]
[403960906,1769694643024,-500.0,0.00013698,2]
[403960908,1769694643033,-500.0,0.00013699,2]
[403960910,1769694643046,-500.0,0.00013699,2]
[403960912,1769694643055,-910.497006,0.00013699,2]
[403960914,1769694643063,-1000.0,0.00013699,2]
[403960916,1769694643073,-2952.7637492,0.00013699,2]
[403960918,1769694643081,-500.0,0.00013699,2]
[403960919,1769694643090,-314.792435,0.00013699,2]
[403960921,1769694643100,-501.76365168,0.00013699,2]
[403960923,1769694643109,-500.0,0.00013699,2]
[403960925,1769694643118,-500.75803963,0.00013699,2]
[403960926,1769694643127,-500.0,0.00013699,2]
[403960928,1769694643135,-501.60095283,0.00013699,2]
[403960930,1769694643144,-500.84679195,0.00013699,2]
[403960932,1769694643154,-505.40496948,0.00013699,2]
[403960934,1769694643164,-500.0,0.00013699,2]
[403960936,1769694643173,-507.77467851,0.00013699,2]
[403960938,1769694643183,-500.0,0.00013699,2]
[403960940,1769694643192,-500.0,0.00013699,2]
[403960942,1769694643200,-500.0,0.00013699,2]
[403960944,1769694643210,-500.0,0.00013699,2]
[403960947,1769694643229,-500.0,0.00013699,2]
[403960950,1769694643241,-291.60725507,0.00013699,2]
[403960952,1769694643250,-500.0,0.00013699,2]
[403960954,1769694643259,-500.0,0.00013699,2]
[403960955,1769694643268,-500.0,0.00013699,2]
[403960957,1769694643277,-500.0,0.00013699,2]
[403960959,1769694643286,-500.0,0.00013699,2]
[403960961,1769694643295,-500.0,0.00013699,2]
[403960963,1769694643304,-500.0,0.00013699,2]
[403960965,1769694643313,-500.0,0.00013699,2]
[403960967,1769694643322,-500.0,0.00013699,2]
[403960969,1769694643331,-502.71899874,0.00013699,2]
[403960971,1769694643339,-500.0,0.00013699,2]
[403960973,1769694643348,-500.0,0.00013699,2]
[403960975,1769694643357,-546.1532964,0.00013699,2]
[403960977,1769694643366,-3207.40519818,0.00013699,2]
[403960978,1769694643375,-864.0,0.0001376,2]
[403960980,1769694643384,-501.40141245,0.00013821,2]
[403960982,1769694643394,-500.0,0.00013821,2]
[403960984,1769694643403,-500.0,0.00013821,2]
[403960986,1769694643412,-1076.36100435,0.00013821,2]
[403960988,1769694643420,-1000.0,0.00013821,2]
[403960990,1769694643429,-1000.0,0.00013821,2]
[403960992,1769694643438,-1000.0,0.00013821,2]
[403960994,1769694643446,-1000.0,0.00013821,2]
[403960996,1769694643456,-152.49167372,0.00013821,2]
[403960997,1769694643465,-502.30333023,0.00013821,2]
[403960999,1769694643474,-1000.0,0.00013821,2]
[403961001,1769694643483,-502.84198919,0.00013821,2]
[403961003,1769694643492,-500.0,0.00013821,2]
[403961005,1769694643501,-502.121625,0.00013821,2]
[403961007,1769694643510,-1000.0,0.00013821,2]
[403961009,1769694643519,-1000.0,0.00013821,2]
[403961011,1769694643528,-316.97781624,0.00013821,2]
[403961013,1769694643537,-1000.0,0.00013821,2]
[403961015,1769694643547,-1000.0,0.00013821,2]
[403961016,1769694643556,-500.0,0.00013821,2]
[403961018,1769694643566,-211.72145418,0.00013821,2]
[403961020,1769694643576,-1009.21152379,0.00013821,2]
[403961022,1769694643585,-1000.0,0.00013821,2]
[403961024,1769694643594,-355.419529,0.00013821,2]
[403961026,1769694643603,-1000.0,0.00013821,2]
[403961028,1769694643613,-468.87374591,0.00013821,2]
[403961030,1769694643624,-1000.0,0.00013821,2]
[403961032,1769694643634,-636.43381346,0.00013821,2]
[403961033,1769694643643,-500.0,0.00013821,2]
[403961035,1769694643652,-399.87672354,0.00013821,2]
[403961037,1769694643663,-1000.0,0.00013821,2]
[403961039,1769694643672,-1000.0,0.00013821,2]
[403961041,1769694643681,-1000.0,0.00013821,2]
[403961043,1769694643691,-500.0,0.00013821,2]
[403961045,1769694643700,-1000.0,0.00013821,2]
[403961047,1769694643709,-1000.92401321,0.00013821,2]
[403961049,1769694643718,-1000.0,0.00013821,2]
[403961051,1769694643727,-254.4066558,0.00013821,2]
[403961053,1769694643736,-1000.0,0.00013821,2]
[403961055,1769694643745,-1000.0,0.00013821,2]
[403961057,1769694643754,-1000.0,0.00013821,2]
[403961059,1769694643766,-551.77248145,0.00013821,2]
[403961061,1769694643774,-1000.0,0.00013821,2]
[403961062,1769694643783,-500.0,0.00013821,2]
[403961064,1769694643792,-1000.0,0.00013973,2]
[403961066,1769694643801,-250.0,0.00014003,2]
[403961068,1769694643810,-780.0,0.000142,2]
[403961081,1769694643926,-600.0,0.00014221,2]
[403961083,1769694643935,-3780.31941871,0.00014225,2]
[403961085,1769694643944,-160.9968606,0.00014247,2]
[403961087,1769694643953,-500.0,0.00014247,2]
[403961088,1769694643962,-1000.0,0.00014247,2]
[403961090,1769694643971,-1000.0,0.00014247,2]
[403961092,1769694643980,-1000.0,0.00014247,2]
[403961094,1769694643989,-1000.0,0.00014247,2]
[403961096,1769694643999,-592.85387235,0.00014247,2]
[403961098,1769694644008,-1000.0,0.00014247,2]
[403961100,1769694644017,-1000.0,0.00014247,2]
[403961102,1769694644026,-1102.21614882,0.00014247,2]
[403961104,1769694644034,-504.15902707,0.00014247,2]
[403961105,1769694644043,-1000.0,0.00014247,2]
[403961107,1769694644052,-1000.0,0.00014247,2]
[403961109,1769694644061,-1000.0,0.00014247,2]
[403961111,1769694644071,-1000.0,0.00014247,2]
[403961113,1769694644080,-1134.23032778,0.00014247,2]
[403961115,1769694644090,-3326.07919052,0.00014247,2]
[403961117,1769694644099,-517.09664357,0.00014368,2]
[403961119,1769694644108,-1500.0,0.00014368,2]
[403961121,1769694644117,-1268.34650551,0.00014368,2]
[403961122,1769694644126,-196.99444629,0.00014368,2]
[403961124,1769694644135,-1500.0,0.00014368,2]
[403961126,1769694644143,-520.07794953,0.00014368,2]
[403961128,1769694644152,-1500.0,0.00014368,2]
[403961130,1769694644161,-1500.0,0.00014368,2]
[403961132,1769694644170,-1500.0,0.00014368,2]
[403961134,1769694644179,-1500.0,0.00014368,2]
[403961136,1769694644187,-897.62397769,0.00014368,2]
[403961138,1769694644196,-1500.0,0.00014368,2]
[403961139,1769694644205,-175.05414771,0.00014368,2]
[403961141,1769694644214,-1500.0,0.00014368,2]
[403961142,1769694644224,-1500.0,0.00014368,2]
[403961143,1769694644232,-1500.0,0.00014368,2]
[403961144,1769694644241,-1500.0,0.00014368,2]
[403961145,1769694644250,-1502.6154559,0.00014368,2]
[403961146,1769694644258,-506.38016949,0.00014368,2]
[403961147,1769694644267,-1500.0,0.00014368,2]
[403961148,1769694644275,-1500.0,0.00014368,2]
[403961149,1769694644284,-167.59538682,0.00014384,2]
[403961150,1769694644293,-1369.0,0.00014477,2]
[403961151,1769694644301,-630.0,0.00014477,2]
[403961152,1769694644310,-2150.0,0.00014477,2]
[403961153,1769694644318,-823.0,0.00014595,2]
[403961154,1769694644327,-2381.0,0.0001464,2]
[403961155,1769694644336,-900.0,0.00014768,2]
[403961156,1769694644344,-1500.0,0.00014795,2]
[403961157,1769694644353,-1500.0,0.00014795,2]
[403961158,1769694644362,-822.54748319,0.00014795,2]
[403961159,1769694644370,-1065.0903288,0.00014795,2]
[403961160,1769694644379,-336.07837269,0.00014795,2]
[403961161,1769694644388,-1500.0,0.00014795,2]
[403961162,1769694644397,-1500.0,0.00014795,2]
[403961163,1769694644406,-501.10012348,0.00014795,2]
[403961164,1769694644415,-3449.14412057,0.00014795,2]
[403961165,1769694644424,-2000.0,0.00014916,2]
[403961167,1769694644433,-424.32204893,0.00014916,2]
[403961169,1769694644442,-559.00085584,0.00014916,2]
[403961171,1769694644451,-2000.0,0.00014916,2]
[403961173,1769694644460,-500.0,0.00014916,2]
[403961175,1769694644469,-1674.31678051,0.00014916,2]
[403961177,1769694644478,-2001.01080598,0.00014916,2]
[403961179,1769694644486,-2000.0,0.00014916,2]
[403961181,1769694644496,-2000.0,0.00014916,2]
[403961183,1769694644505,-2000.0,0.00014916,2]
[403961185,1769694644514,-2000.0,0.00014916,2]
[403961187,1769694644523,-2000.0,0.00014916,2]
[403961189,1769694644532,-2000.0,0.00014916,2]
[403961191,1769694644542,-457.81392831,0.00014986,2]
[403961193,1769694644551,-217.43292674,0.00015092,2]
[403961195,1769694644560,-1000.0,0.00015136,2]
[403961197,1769694644569,-160.0,0.00015178,2]
[403961199,1769694644578,-10000.0,0.000153,2]
[403961201,1769694644587,-3780.31941871,0.000153,2]
[403961203,1769694644595,-600.0,0.00015316,2]
[403961205,1769694644604,-475.0,0.00015342,2]
[403961207,1769694644614,-475.0,0.00015342,2]
[403961209,1769694644626,-10000.0,0.00015342,2]
[403961211,1769694644635,-1629.28367097,0.00015342,2]
[403961213,1769694644644,-2000.0,0.00015342,2]
[403961215,1769694644653,-3576.76245303,0.00015343,2]
[403961217,1769694644663,-15563.8191326,0.00015358,2]
[403961219,1769694644674,-3398.723764,0.00015358,7]
[403961221,1769694644683,-1511.118186,0.00015358,7]
[403961223,1769694644692,-751.349632,0.00015358,7]
[403961225,1769694644702,-872.629926,0.00015399,7]
[403961227,1769694644711,-200.0,0.00015399,2]
[403961229,1769694644720,-518.832145,0.00015399,7]
[403961231,1769694644730,-1275005.23395266,0.000154,2]
[403961233,1769694644739,-72019.95266179,0.000154,2]
[403961235,1769694644748,-8418.56,0.00015442,2]
[403961237,1769694644757,-500.0,0.00015464,2]
[403961239,1769694644766,-2500.0,0.00015464,2]
[403961241,1769694644775,-1500.0,0.00015464,2]
[403961242,1769694644784,-2500.0,0.00015464,2]
[403961244,1769694644793,-2000.0,0.00015464,2]
[403961246,1769694644802,-2500.0,0.00015464,2]
[403961248,1769694644811,-2500.0,0.00015464,2]
[403961250,1769694644820,-2500.0,0.00015464,2]
[403961252,1769694644829,-378.503554,0.00015474,7]
[403961254,1769694644838,-690.75004,0.00015518,7]
[403961256,1769694644846,-4074.289787,0.00015518,7]
[403961258,1769694644856,-189.0,0.00015528,2]
[403961260,1769694644865,-1578.73,0.00015559,2]
[403961262,1769694644874,-5000.0,0.0001564,2]
[403961265,1769694644884,-178.645013,0.00015771,7]
[403961266,1769694644893,-189.0,0.0001579,2]
[403961268,1769694644902,-189.0,0.00015814,2]
[403961270,1769694644911,-150.0,0.00015837,2]
[403961272,1769694644921,-150.063,0.00015837,2]
[403961274,1769694644929,-150.331,0.00015837,2]
[403961275,1769694644939,-250.0,0.00015837,2]
[403961277,1769694644948,-150.318,0.00015837,2]
[403961279,1769694644956,-189.0,0.00015857,2]
[403961281,1769694644965,-189.0,0.00015885,2]
[403961283,1769694644974,-2500.0,0.0001589,2]
[403961285,1769694644983,-189.0,0.00015928,2]
[403961288,1769694644994,-189.0,0.00015932,2]
[403961290,1769694645003,-3000.0,0.00016012,2]
[403961292,1769694645011,-1504.66008898,0.00016012,2]
[403961294,1769694645021,-3000.0,0.00016012,2]
[403961296,1769694645030,-3085.83878744,0.00016012,2]
[403961297,1769694645039,-2500.0,0.00016012,2]
[403961299,1769694645048,-1152.0,0.00016039,2]
[403961301,1769694645057,-189.0,0.00016142,2]
[403961303,1769694645067,-189.0,0.00016162,2]
[403961305,1769694645075,-189.0,0.00016212,2]
[403961307,1769694645085,-189.0,0.00016217,2]
[403961309,1769694645094,-3280.88601016,0.00016274,2]
[403961311,1769694645103,-189.0,0.00016349,2]
[403961313,1769694645112,-189.0,0.00016414,2]
[403961315,1769694645122,-200.0,0.00016438,2]
[403961317,1769694645131,-269.15028555,0.00016438,2]
[403961319,1769694645140,-500.0,0.00016438,2]
[403961321,1769694645150,-597.65489359,0.00016438,2]
[403961323,1769694645159,-514.0,0.00016438,2]
[403961325,1769694645167,-500.0,0.00016438,2]
[403961327,1769694645176,-500.0,0.00016438,2]
[403961329,1769694645185,-500.0,0.00016438,2]
[403961331,1769694645194,-500.0,0.00016438,2]
[403961333,1769694645203,-500.0,0.00016438,2]
[403961334,1769694645213,-500.0,0.00016438,2]
[403961336,1769694645222,-500.0,0.00016438,2]
[403961338,1769694645232,-500.0,0.00016438,2]
[403961340,1769694645241,-500.0,0.00016438,2]
[403961342,1769694645250,-500.0,0.00016438,2]
[403961344,1769694645259,-500.0,0.00016438,2]
[403961346,1769694645268,-500.0,0.00016438,2]
[403961349,1769694645278,-500.0,0.00016438,2]
[403961350,1769694645287,-500.0,0.00016438,2]
[403961352,1769694645296,-155.31554479,0.00016438,2]
[403961354,1769694645305,-3000.0,0.00016438,2]
[403961356,1769694645314,-186.31,0.0001644,2]
[403961358,1769694645323,-189.0,0.00016448,2]
[403961360,1769694645333,-189.0,0.00016539,2]
[403961362,1769694645342,-189.0,0.0001654,2]
[403961364,1769694645351,-224.0,0.00016548,3]
[403961366,1769694645361,-1500.0,0.0001656,2]
[403961368,1769694645370,-3500.0,0.0001656,2]
[403961370,1769694645379,-971.063932,0.00016587,7]
[403961372,1769694645388,-431.748053,0.00016587,7]
[403961374,1769694645397,-214.671323,0.00016587,7]
[403961376,1769694645406,-189.0,0.00016589,2]
[403961377,1769694645415,-189.0,0.00016594,2]
[403961379,1769694645424,-249.322836,0.00016631,7]
[403961382,1769694645434,-189.0,0.00016636,2]
[403961383,1769694645444,-189.0,0.00016643,2]
[403961385,1769694645453,-1000.0,0.0001665,2]
[403961387,1769694645463,-244.0,0.0001665,2]
[403961389,1769694645472,-163.16,0.00016767,2]
[403961391,1769694645481,-189.0,0.00016798,2]
[403961393,1769694645491,-189.0,0.00016889,2]
[403961395,1769694645500,-161.0,0.000169,2]
[403961397,1769694645509,-189.0,0.00016939,2]
[403961399,1769694645519,-963.827345,0.00016939,7]
[403961401,1769694645528,-518.40694824,0.00016986,2]
[403961403,1769694645537,-3500.0,0.00016986,2]
[403961405,1769694645546,-304.46545651,0.00017,2]
[403961407,1769694645554,-200.65392429,0.00017072,2]
[403961409,1769694645564,-189.0,0.00017073,2]
[403961411,1769694645573,-33023.410296,0.00017073,7]
[403961413,1769694645582,-1091.91529561,0.00017108,2]
[403961415,1769694645592,-50953.09696953,0.0001747,2]
[403961417,1769694645600,-1369.0,0.00017477,2]
[403961419,1769694645609,-630.0,0.00017477,2]
[403961421,1769694645618,-2150.0,0.00017477,2]
[403961422,1769694645632,-1319.71586935,0.00017534,2]
[403961424,1769694645643,-189.0,0.00017565,2]
[403961426,1769694645653,-1613.0,0.00017625,2]
[403961428,1769694645663,-150.0,0.00017808,2]
[403961430,1769694645672,-2037.144893,0.00017961,7]
[403961432,1769694645681,-1610.75288337,0.00017977,4]
[403961434,1769694645691,-9303.66060408,0.00018,2]
[403961436,1769694645702,-2000.16133908,0.00018,2]
[403961438,1769694645710,-116598.09,0.00018082,3]
[403961440,1769694645720,-151.0,0.000181,2]
[403961442,1769694645729,-151.0,0.000181,2]
[403961444,1769694645738,-151.0,0.000181,2]
[403961446,1769694645747,-151.0,0.000181,2]
[403961448,1769694645757,-151.0,0.000181,2]
[403961450,1769694645766,-151.0,0.000181,2]
[403961452,1769694645775,-151.0,0.000181,2]
[403961453,1769694645784,-151.0,0.000181,2]
[403961456,1769694645794,-151.0,0.000181,2]
[403961458,1769694645803,-151.0,0.000181,2]
[403961459,1769694645812,-151.0,0.000181,2]
[403961461,1769694645821,-151.0,0.000181,2]
[403961463,1769694645830,-151.4031818,0.000181,2]
[403961465,1769694645839,-195.0,0.00018192,3]
[403961467,1769694645849,-275.379241,0.00018294,7]
[403961469,1769694645859,-9571.69079351,0.000183,3]
[403961471,1769694645868,-645.22459325,0.000183,2]
[403961473,1769694645877,-1000.0,0.00018315,2]
[403961475,1769694645886,-492.0,0.00018315,2]
[403961477,1769694645895,-3472.7574555,0.00018347,2]
[403961479,1769694645904,-200.0,0.00018356,2]
[403961481,1769694645913,-9435.260084,0.00018439,7]
[403961483,1769694645922,-477.611851,0.00018493,2]
[403961485,1769694645932,-500.98,0.000185,30]
[403961487,1769694645941,-500.0,0.0001859,2]
[403961489,1769694645949,-19433.01,0.000186,3]
[403961491,1769694645958,-1325.61,0.00018767,2]
[403961493,1769694645967,-5000.0,0.00018768,2]
[403961495,1769694645976,-150.0,0.00018837,2]
[403961497,1769694645985,-150.0,0.00018837,2]
[403961499,1769694645995,-150.0,0.00018837,2]
[403961501,1769694646004,-150.0,0.00018837,2]
[403961503,1769694646014,-163.16,0.00018893,2]
[403961505,1769694646023,-21601.08739889,0.000189,2]
[403961507,1769694646032,-303.10001603,0.000189,2]
[403961509,1769694646040,-303.10001603,0.000189,2]
[403961511,1769694646050,-251.95315776,0.00018904,2]
[403961513,1769694646059,-212.00662806,0.00018906,2]
[403961514,1769694646068,-3280.88601016,0.00018925,2]
[403961516,1769694646077,-578.99996816,0.00018986,2]
[403961518,1769694646086,-153.920681,0.00018995,2]
[403961520,1769694646095,-151.0,0.00018995,2]
[403961522,1769694646104,-151.0,0.00018995,2]
[403961524,1769694646113,-500.0,0.00019,30]
[403961526,1769694646122,-12774.38585591,0.00019,2]
[403961528,1769694646130,-774.8769272,0.00019013,2]
[403961530,1769694646139,-303.10001603,0.00019089,2]
[403961532,1769694646148,-303.10001603,0.00019089,2]
[403961534,1769694646158,-645.0,0.000191,30]
[403961535,1769694646167,-508.1504,0.00019178,2]
[403961537,1769694646175,-508.1504,0.00019178,2]
[403961539,1769694646184,-508.1504,0.00019178,2]
[403961541,1769694646193,-508.1504,0.00019178,2]
[403961542,1769694646202,-200.0,0.00019178,2]
[403961543,1769694646211,-508.1504,0.00019178,2]
[403961544,1769694646221,-508.1504,0.00019178,2]
[403961545,1769694646230,-508.1504,0.00019178,2]
[403961546,1769694646239,-508.1504,0.00019178,2]
[403961547,1769694646247,-508.1504,0.00019178,2]
[403961548,1769694646256,-508.1504,0.00019178,2]
[403961549,1769694646266,-508.1504,0.00019178,2]
[403961550,1769694646275,-508.1504,0.00019178,2]
[403961551,1769694646284,-508.1504,0.00019178,2]
[403961552,1769694646293,-508.1504,0.00019178,2]
[403961553,1769694646302,-508.1504,0.00019178,2]
[403961554,1769694646311,-508.15,0.00019178,2]
[403961555,1769694646320,-508.1504,0.00019178,2]
[403961556,1769694646329,-151.0,0.00019178,2]
[403961557,1769694646338,-151.0,0.00019178,2]
[403961558,1769694646347,-209.996741,0.00019178,2]
[403961559,1769694646356,-209.996741,0.00019178,2]
[403961560,1769694646365,-209.996741,0.00019178,2]
[403961561,1769694646374,-209.996741,0.00019178,2]
[403961562,1769694646383,-172.0,0.000192,2]
[403961563,1769694646392,-163.15,0.000192,2]
[403961564,1769694646402,-1550.7,0.000192,2]
[403961565,1769694646411,-168.19,0.000192,2]
[403961566,1769694646420,-3544.87,0.000192,2]
[403961567,1769694646430,-880.632,0.00019243,2]
[403961568,1769694646438,-303.10001603,0.00019278,2]
[403961569,1769694646447,-303.10001603,0.00019278,2]
[403961570,1769694646457,-2258.0,0.00019368,2]
[403961571,1769694646466,-303.10001624,0.00019467,2]
[403961572,1769694646476,-303.10001603,0.00019467,2]
[403961573,1769694646485,-303.10001603,0.00019656,2]
[403961574,1769694646494,-1000.0,0.000197,2]
[403961575,1769694646503,-1000.0,0.000197,2]
[403961576,1769694646512,-1000.0,0.000197,2]
[403961577,1769694646521,-1000.0,0.000197,2]
[403961578,1769694646530,-1000.0,0.000197,2]
[403961579,1769694646539,-1000.0,0.000197,2]
[403961580,1769694646548,-1000.0,0.000197,2]
[403961581,1769694646557,-1000.0,0.000197,2]
[403961582,1769694646567,-1000.0,0.000197,2]
[403961583,1769694646576,-1000.0,0.000197,2]
[403961584,1769694646585,-151.0,0.000197,2]
[403961585,1769694646594,-209.996741,0.000197,2]
[403961586,1769694646604,-209.996741,0.000197,2]
[403961587,1769694646613,-209.996741,0.000197,2]
[403961588,1769694646627,-209.996741,0.000197,2]
[403961589,1769694646637,-196.0,0.00019836,3]
[403961590,1769694646646,-454.65002405,0.00019845,4]
[403961591,1769694646655,-288.0,0.00019956,2]
[403961592,1769694646775,-1264.994,0.0001996,5]
[403961593,1769694646785,-1000.0,0.0001998,5]
[403961594,1769694646794,-153.250577,0.0001998,2]
[403961595,1769694646804,-153.250577,0.0001998,2]
[403961596,1769694646813,-153.250577,0.0001998,2]
[403961597,1769694646822,-153.250577,0.0001998,2]
[403961598,1769694646831,-326.616218,0.0001998,2]
[403961599,1769694646840,-326.616218,0.0001998,2]
[403961600,1769694646850,-326.616218,0.0001998,2]
[403961601,1769694646859,-326.616218,0.0001998,2]
[403961602,1769694646869,-160.080915,0.0001998,2]
[403961603,1769694646878,-500.0,0.0002,30]
[403961604,1769694646888,-13954.45134406,0.0002,2]
[403961606,1769694646897,-14721.8065331,0.0002,2]
[403961608,1769694646906,-40766.42377389,0.0002,2]
[403961610,1769694646915,-697994.66008834,0.0002,2]
[403961612,1769694646924,-4581.48594404,0.0002,5]
[403961614,1769694646933,-23562.0,0.0002,7]
[403961615,1769694646942,-150.0,0.0002,2]
[403961616,1769694646951,-151.0,0.0002,2]
[403961617,1769694646960,-151.0,0.0002,2]
[403961619,1769694646969,-151.0,0.0002,2]
[403961620,1769694646979,-151.0,0.0002,2]
[403961621,1769694646988,-508.1504,0.0002,4]
[403961622,1769694646997,-508.1496,0.0002,4]
[403961623,1769694647007,-508.1504,0.0002,4]
[403961624,1769694647016,-508.1504,0.0002,4]
[403961625,1769694647025,-1000.0,0.0002,5]
[403961626,1769694647034,-508.1496,0.0002,4]
[403961627,1769694647043,-508.1496,0.0002,4]
[403961628,1769694647052,-508.1504,0.0002,4]
[403961629,1769694647061,-508.1504,0.0002,4]
[403961630,1769694647071,-508.1504,0.0002,4]
[403961631,1769694647080,-508.1504,0.0002,4]
[403961632,1769694647089,-508.1504,0.0002,4]
[403961633,1769694647098,-151.0,0.0002,2]
[403961634,1769694647108,-199.9796,0.0002,4]
[403961635,1769694647117,-508.1504,0.0002,4]
[403961636,1769694647126,-508.1504,0.0002,4]
[403961637,1769694647135,-1000.490761,0.0002,2]
[403961638,1769694647144,-305.9596,0.0002,4]
[403961639,1769694647153,-150.0,0.0002,10]
[403961640,1769694647162,-153.250577,0.0002,2]
[403961641,1769694647171,-153.250577,0.0002,2]
[403961642,1769694647180,-153.250577,0.0002,2]
[403961643,1769694647189,-153.250577,0.0002,2]
[403961644,1769694647199,-326.616218,0.0002,2]
[403961645,1769694647209,-326.616218,0.0002,2]
[403961646,1769694647218,-326.616218,0.0002,2]
[403961647,1769694647227,-326.616218,0.0002,2]
[403961648,1769694647236,-287.536478,0.0002,2]
[403961649,1769694647245,-287.536478,0.0002,2]
[403961650,1769694647255,-287.536478,0.0002,2]
[403961651,1769694647264,-287.536478,0.0002,2]
[403961652,1769694647274,-287.536478,0.0002,2]
[403961653,1769694647282,-287.536478,0.0002,2]
[403961654,1769694647292,-287.536478,0.0002,2]
[403961655,1769694647301,-287.536478,0.0002,2]
[403961656,1769694647310,-151.551911,0.0002,2]
[403961657,1769694647319,-2000.0,0.0002,7]
[403961658,1769694647329,-209.996741,0.0002,2]
[403961659,1769694647338,-209.996741,0.0002,2]
[403961660,1769694647348,-209.996741,0.0002,2]
[403961661,1769694647357,-209.996741,0.0002,2]
[403961662,1769694647366,-454.65002405,0.00020034,4]
[403961663,1769694647375,-1000.0,0.00020146,2]
[403961664,1769694647393,-791.0,0.00020146,2]
[403961665,1769694647405,-454.65002405,0.00020223,4]
[403961666,1769694647414,-5000.0,0.00020332,2]
[403961667,1769694647424,-508.1492,0.00020411,5]
[403961668,1769694647433,-508.1492,0.00020411,5]
[403961669,1769694647443,-508.1504,0.00020411,5]
[403961670,1769694647452,-508.1504,0.00020411,5]
[403961671,1769694647462,-508.1504,0.00020411,5]
[403961672,1769694647472,-508.1504,0.00020411,5]
[403961673,1769694647481,-508.1504,0.00020411,5]
[403961674,1769694647491,-508.1504,0.00020411,5]
[403961675,1769694647500,-508.1492,0.00020411,5]
[403961676,1769694647510,-508.1504,0.00020411,5]
[403961677,1769694647519,-454.65002405,0.00020412,4]
[403961678,1769694647529,-1369.0,0.00020477,2]
[403961679,1769694647538,-630.0,0.00020477,2]
[403961681,1769694647547,-910.497006,0.00020548,2]
[403961683,1769694647557,-606.20003186,0.00020601,4]
[403961684,1769694647566,-639.59298808,0.00020986,2]
[403961686,1769694647576,-3544.87,0.00021,2]
[403961688,1769694647585,-2000.0,0.00021,14]
[403961689,1769694647595,-2000.0,0.00021,14]
[403961690,1769694647604,-587.82,0.00021,14]
[403961691,1769694647617,-2000.0,0.00021,14]
[403961693,1769694647631,-3000.0,0.00021,2]
[403961694,1769694647641,-3000.0,0.0002101,2]